bitfinex-derivatives/quotes_SOLF0:USTF0_20250421
["timestamp","ask_amount","ask_price","bid_price","bid_amount"]
[1745248322438,7.2094,138.68,138.64,7.2112]
[1745248322630,31.9434,138.69,138.61,30.02]
[1745248322936,0.04743168,138.67,138.65,0.05288059]
[1745248323233,0.04743168,138.67,138.65,30.05288059]
[1745248323540,0.04743168,138.67,138.65,37.26318059]
[1745248324026,0.04743168,138.67,138.65,30.05288059]
[1745248324626,0.04743168,138.67,138.65,37.26338059]
[1745248324828,0.04743168,138.67,138.65,30.05288059]
[1745248325031,14.4055,138.81,138.65,608.65288059]
[1745248325236,7.2069,138.73,138.68,7.209]
[1745248325436,30.51723942,138.76,138.65,573.3814]
[1745248325636,30.51723942,138.76,138.68,30.0]
[1745248326237,0.052199,138.73,138.71,0.05023081]
[1745248326437,7.2075,138.72,138.71,0.05023081]
[1745248326638,0.052199,138.73,138.71,0.05023081]
[1745248326836,0.052199,138.73,138.71,7.25743081]
[1745248327041,30.51723942,138.82,138.72,30.0]
[1745248327334,6.0726,138.83,138.72,31.9111]
[1745248327537,7.2033,138.8,138.72,31.9111]
[1745248327840,6.0726,138.83,138.72,31.9111]
[1745248328137,0.04950599,138.79,138.77,7.2042]
[1745248328337,0.04950599,138.79,138.77,37.2042]
[1745248328539,0.04950599,138.79,138.77,30.0]
[1745248329240,0.04950599,138.79,138.76,0.04793346]
[1745248329434,30.51723942,138.78,138.76,0.04793346]
[1745248329636,7.207,138.73,138.7,30.0]
[1745248330232,2.0821,138.77,138.7,30.0]
[1745248330438,30.51723942,138.75,138.67,30.0]
[1745248330940,0.04550753,138.72,138.7,0.05079421]
[1745248332442,0.04550753,138.72,138.71,7.2076]
[1745248332645,0.04550753,138.72,138.71,37.1876]
[1745248332835,7.2061,138.74,138.71,37.1876]
[1745248332836,2.0821,138.77,138.71,29.98]
[1745248333140,7.2049,138.77,138.72,7.2068]
[1745248333334,30.51723942,138.78,138.72,7.2068]
[1745248333537,30.51723942,138.78,138.71,29.98]
[1745248333943,0.05293422,138.76,138.73,0.04747345]
[1745248334142,7.2061,138.74,138.73,0.04747345]
[1745248334539,0.05293422,138.76,138.68,29.98]
[1745248334745,30.51723942,138.78,138.69,7.2083]
[1745248335246,7.2064,138.74,138.7,7.2081]
[1745248335546,30.51723942,138.78,138.68,29.98]
[1745248335746,0.0529067,138.73,138.71,0.04655616]
[1745248336047,30.51723942,138.81,138.72,29.96]
[1745248336242,0.04791964,138.73,138.72,29.96]
[1745248336547,33.8821,138.82,138.72,29.96]
[1745248336746,3.9221,138.82,138.74,30.51723942]
[1745248336948,0.05006968,138.78,138.74,30.51723942]
[1745248337240,29.96,138.85,138.75,2.08689209]
[1745248337447,4.0164,138.86,138.77,30.51723942]
[1745248337651,7.2017,138.83,138.79,7.2032]
[1745248337947,7.2017,138.83,138.77,30.51723942]
[1745248337948,4.0164,138.86,138.8,29.94]
[1745248338345,0.05300911,138.84,138.82,0.05052004]
[1745248338851,7.2018,138.83,138.82,0.05052004]
[1745248339151,7.25300911,138.84,138.76,29.94]
[1745248339448,7.2054,138.76,138.73,600.86]
[1745248339647,7.2054,138.76,138.73,29.94]
[1745248339841,30.51723942,138.82,138.73,29.94]
[1745248339842,7.2061,138.74,138.73,29.94]
[1745248340148,30.51723942,138.82,138.73,29.94]
[1745248340451,7.2056,138.75,138.73,29.94]
[1745248340648,0.04948616,138.79,138.73,29.94]
[1745248340953,29.94,138.79,138.73,0.0492486]
[1745248341254,7.2066,138.74,138.73,0.0492486]
[1745248345549,0.05318077,138.77,138.67,29.94]
[1745248345550,7.2084,138.7,138.67,29.94]
[1745248345849,7.2084,138.7,138.59,361.0]
[1745248345850,30.51723942,138.73,138.6,32.62043942]
[1745248346148,30.51723942,138.7,138.6,29.94]
[1745248346348,31.8642,138.69,138.6,29.94]
[1745248346848,0.0509255,138.66,138.63,0.0542551]
[1745248347252,7.2113,138.64,138.63,0.0542551]
[1745248349952,7.2136,138.6,138.57,29.94]
[1745248350253,60.47723942,138.65,138.57,29.94]
[1745248350756,7.2132,138.61,138.57,37.1548]
[1745248351158,0.05129875,138.6,138.58,0.0509961]
[1745248351353,60.47723942,138.65,138.58,0.0509961]
[1745248351558,0.04657049,138.6,138.58,0.0509961]
[1745248351761,29.96,138.65,138.58,0.0509961]
[1745248351955,0.04710165,138.6,138.58,0.0509961]
[1745248352158,29.96,138.65,138.58,0.0509961]
[1745248352352,7.2115,138.64,138.58,0.0509961]
[1745248352553,0.04883566,138.63,138.58,0.0509961]
[1745248352754,0.04883566,138.63,138.58,4.1391]
[1745248352955,0.04883566,138.63,138.59,0.04660989]
[1745248353462,0.04883566,138.63,138.6,7.2131]
[1745248354561,0.04883566,138.63,138.59,0.04660989]
[1745248354757,0.04883566,138.63,138.61,29.96]
[1745248355258,0.04883566,138.63,138.62,7.2123]
[1745248356062,7.2094,138.68,138.64,7.2112]
[1745248356458,6.0538,138.74,138.65,29.96]
[1745248356665,6.0538,138.74,138.66,29.96]
[1745248356858,7.2074,138.72,138.66,29.96]
[1745248357058,7.2074,138.72,138.69,0.0520666]
[1745248357357,29.96,138.79,138.7,29.96]
[1745248357561,29.96,138.79,138.7,37.168]
[1745248357754,29.96,138.79,138.7,29.96]
[1745248357954,4.0478,138.8,138.7,29.96]
[1745248358160,7.2041,138.78,138.71,2.1059]
[1745248358558,0.05471404,138.76,138.73,0.05536604]
[1745248358962,0.05471404,138.76,138.73,7.26156604]
[1745248359261,0.05471404,138.76,138.74,29.96]
[1745248359861,31.8924,138.82,138.74,29.96]
[1745248360058,600.50530886,138.84,138.74,29.96]
[1745248360364,7.2021,138.82,138.79,7.2035]
[1745248360761,27.42030886,138.84,138.78,29.96]
[1745248360957,25.40320886,138.84,138.81,7.2023]
[1745248361162,0.05250581,138.82,138.81,7.2023]
[1745248361661,32.0421,138.88,138.8,0.05477448]
[1745248361662,600.98,138.91,138.82,7.2017]
[1745248361965,7.199,138.88,138.82,29.94]
[1745248362266,600.98,138.91,138.82,29.94]
[1745248362464,29.96,138.91,138.82,29.94]
[1745248362763,25.40320886,138.96,138.85,0.05208481]
[1745248362962,7.1966,138.93,138.86,29.94]
[1745248363162,27.46010886,138.96,138.9,7.1974]
[1745248363468,27.46010886,138.96,138.9,29.94]
[1745248363964,0.05214846,138.94,138.92,0.04959369]
[1745248364366,7.1962,138.93,138.92,0.04959369]
[1745248365066,0.05214846,138.94,138.82,49.3967621]
[1745248365267,49.3967621,138.95,138.83,29.94]
[1745248365469,49.3967621,138.95,138.85,7.2003]
[1745248365669,49.3967621,138.92,138.83,29.94]
[1745248365868,2.1113,138.91,138.83,29.94]
[1745248366163,0.05035169,138.88,138.86,0.05247403]
[1745248366371,7.24935169,138.88,138.86,0.05247403]
[1745248366971,7.1993,138.87,138.86,0.05247403]
[1745248367469,7.24925169,138.88,138.86,0.05247403]
[1745248368070,7.1993,138.87,138.86,0.05247403]
[1745248369171,7.2,138.87,138.77,31.8554]
[1745248369374,49.3967621,138.86,138.77,31.8554]
[1745248369572,7.2017,138.83,138.78,7.2037]
[1745248370272,0.04690612,138.82,138.79,7.25022603]
[1745248370669,0.04690612,138.82,138.79,0.04672603]
[1745248370869,0.04690612,138.82,138.8,7.2026]
[1745248371069,0.04690612,138.82,138.79,0.04672603]
[1745248373370,0.04690612,138.82,138.81,7.2025]
[1745248373577,0.04690612,138.82,138.81,37.1025]
[1745248373772,7.1997,138.87,138.83,7.2012]
[1745248373976,7.1997,138.87,138.81,29.9]
[1745248374476,7.1997,138.87,138.82,7.2019]
[1745248375079,7.25125287,138.86,138.83,0.05229501]
[1745248375279,0.05125287,138.86,138.83,0.05229501]
[1745248375678,7.2009,138.84,138.83,0.05229501]
[1745248377680,7.202,138.82,138.78,7.2039]
[1745248377978,29.9,138.86,138.77,29.9]
[1745248378685,0.05021051,138.83,138.8,0.05547183]
[1745248379187,0.05021051,138.83,138.81,29.9]
[1745248379486,0.05021051,138.83,138.82,7.2019]
[1745248380083,7.1996,138.87,138.83,7.201]
[1745248380289,29.9,138.89,138.81,34.0663]
[1745248380587,7.2003,138.86,138.82,7.2017]
[1745248380786,79.2967621,138.89,138.81,29.9]
[1745248381189,7.2012,138.84,138.81,29.9]
[1745248381590,0.04747427,138.86,138.81,29.95225628]
[1745248382588,0.04747427,138.86,138.81,0.05225628]
[1745248382789,7.201,138.84,138.81,0.05225628]
[1745248382982,0.04747427,138.86,138.81,0.05225628]
[1745248383387,7.2017,138.83,138.81,0.05225628]
[1745248383893,7.2019,138.82,138.81,0.05225628]
[1745248385184,0.05227048,138.83,138.81,0.05225628]
[1745248385886,30.41367829,138.82,138.73,29.9]
[1745248386088,30.41367829,138.82,138.74,7.2058]
[1745248386489,7.2043,138.78,138.74,7.2058]
[1745248386789,29.9,138.81,138.73,37.1066]
[1745248386990,30.41367829,138.79,138.73,29.9]
[1745248387188,7.2045,138.77,138.76,0.05168251]
[1745248388091,29.9,138.77,138.7,29.9]
[1745248388291,30.41367829,138.76,138.7,29.9]
[1745248388493,7.2078,138.71,138.68,7.209]
[1745248388794,60.31367829,138.73,138.63,600.36]
[1745248388986,7.2106,138.66,138.63,29.9]
[1745248389191,0.05170188,138.69,138.67,0.05023639]
[1745248389495,60.31367829,138.73,138.63,37.1116]
[1745248389685,0.05521159,138.69,138.67,0.05252417]
[1745248390293,7.2092,138.68,138.67,0.05252417]
[1745248390700,0.05521159,138.69,138.67,0.05252417]
[1745248393907,0.05521159,138.69,138.68,7.2092]
[1745248394105,1.9125,138.75,138.67,29.97252417]
[1745248394799,9.1183,138.75,138.71,7.2074]
[1745248395004,7.2058,138.75,138.71,7.2074]
[1745248395208,0.04812923,138.74,138.72,0.04750427]
[1745248395911,7.25422923,138.74,138.72,0.04750427]
[1745248397011,0.04812923,138.74,138.72,0.04750427]
[1745248397508,0.04812923,138.74,138.72,7.25420427]
[1745248397708,0.04812923,138.74,138.72,0.04750427]
[1745248398111,7.25452923,138.74,138.72,0.04750427]
[1745248398912,0.04812923,138.74,138.72,0.04750427]
[1745248400411,0.04812923,138.74,138.73,7.2066]
[1745248401507,29.88,138.79,138.74,7.2056]
[1745248401807,7.2034,138.8,138.76,7.2046]
[1745248402511,0.05070385,138.79,138.77,0.04769925]
[1745248403611,7.204,138.78,138.77,0.04769925]
[1745248405910,0.05070385,138.79,138.77,0.04769925]
[1745248406312,7.204,138.78,138.77,0.04769925]
[1745248407514,29.88,138.78,138.71,29.88]
[1745248407713,33.9819,138.78,138.71,29.88]
[1745248407912,7.2071,138.73,138.71,29.88]
[1745248408113,33.9819,138.78,138.71,29.88]
[1745248408614,0.04693606,138.76,138.73,0.05289451]
[1745248408814,0.04693606,138.76,138.73,9.451e-05]
[1745248409210,7.2061,138.74,138.73,9.451e-05]
[1745248409416,29.88,138.74,138.65,600.64]
[1745248409611,30.41367829,138.73,138.65,600.64]
[1745248409815,30.41367829,138.73,138.63,5.9404]
[1745248410016,2.0889,138.72,138.63,5.9404]
[1745248410516,0.04940442,138.69,138.66,0.04791116]
[1745248410710,7.2097,138.67,138.66,0.04791116]
[1745248411018,29.92940442,138.69,138.6,7.2133]
[1745248411213,30.41367829,138.64,138.56,29.88]
[1745248411418,60.29367829,138.64,138.56,29.88]
[1745248411619,60.29367829,138.64,138.53,29.88]
[1745248411810,4.0502,138.63,138.53,37.0966]
[1745248412014,0.04885728,138.6,138.57,0.0455652]
[1745248412417,7.2144,138.58,138.57,0.0455652]
[1745248412813,0.04885728,138.6,138.53,29.88]
[1745248413015,29.9,138.6,138.53,29.88]
[1745248413519,30.41367829,138.58,138.5,600.64]
[1745248414019,30.46663783,138.55,138.49,2.0565]
[1745248414420,30.46663783,138.55,138.48,1.9682]
[1745248414921,7.2174,138.53,138.48,9.1875]
[1745248415121,7.2174,138.53,138.5,0.05432077]
[1745248415318,30.41367829,138.55,138.5,0.05432077]
[1745248415516,7.2181,138.51,138.5,0.05432077]
[1745248415712,0.05529524,138.52,138.5,0.05432077]
[1745248415914,7.2181,138.51,138.5,0.05432077]
[1745248420725,60.38897353,138.52,138.41,29.92]
[1745248420921,60.33367829,138.52,138.41,29.92]
[1745248421121,7.2184,138.51,138.44,30.41367829]
[1745248421320,31.9538,138.54,138.44,29.92]
[1745248421718,30.41367829,138.5,138.39,29.92]
[1745248422022,30.46437787,138.5,138.39,29.92]
[1745248422218,30.41367829,138.53,138.39,29.92]
[1745248422423,30.41367829,138.5,138.39,29.92]
[1745248422620,60.33367829,138.5,138.39,29.92]
[1745248422821,60.33367829,138.5,138.42,7.2226]
[1745248423124,0.05044985,138.47,138.45,0.04689573]
[1745248426130,7.27064985,138.47,138.45,0.04689573]
[1745248426829,0.05044985,138.47,138.45,0.04689573]
[1745248428528,7.27104985,138.47,138.45,0.04689573]
[1745248429233,0.05044985,138.47,138.45,0.04689573]
[1745248431134,0.05044985,138.47,138.45,7.26799573]
[1745248431335,0.05044985,138.47,138.45,0.04689573]
[1745248432136,0.05044985,138.47,138.38,36.1561]
[1745248432337,30.41367829,138.47,138.38,36.1561]
[1745248432630,29.92,138.46,138.38,34.0978]
[1745248432831,32.0293,138.46,138.38,29.92]
[1745248433234,30.41367829,138.44,138.36,571.34]
[1745248433434,0.04595046,138.43,138.41,0.0515581]
[1745248433633,0.04595046,138.43,138.35,29.92]
[1745248433830,2.13915046,138.43,138.35,29.92]
[1745248434036,30.41367829,138.41,138.32,29.92]
[1745248434537,7.2257,138.37,138.33,7.2272]
[1745248436247,7.2265,138.35,138.32,29.92]
[1745248436748,0.04986399,138.35,138.33,7.2272]
[1745248437151,0.04986399,138.35,138.29,571.78]
[1745248439054,7.27656399,138.35,138.29,579.0091]
[1745248439254,7.27656399,138.35,138.29,571.78]
[1745248439448,0.04986399,138.35,138.29,571.78]
[1745248439650,0.04986399,138.35,138.31,7.2281]
[1745248440654,0.04986399,138.35,138.29,571.78]
[1745248441659,30.41367829,138.41,138.29,602.19367829]
[1745248441848,7.2251,138.38,138.29,602.19367829]
[1745248442245,30.41367829,138.41,138.29,602.19367829]
[1745248442453,7.2256,138.37,138.29,602.19367829]
[1745248442755,0.05491032,138.34,138.33,7.2274]
[1745248445257,32.0339,138.42,138.32,60.40177244]
[1745248445458,32.0339,138.42,138.32,29.94]
[1745248445755,7.2252,138.38,138.35,7.2264]
[1745248445956,30.41367829,138.41,138.32,29.94]
[1745248446346,7.2256,138.37,138.35,0.04991366]
[1745248447456,7.27534242,138.38,138.35,7.27621366]
[1745248447857,0.05034242,138.38,138.35,7.27621366]
[1745248448056,7.27544242,138.38,138.35,7.27621366]
[1745248448358,0.05034242,138.38,138.35,0.04991366]
[1745248448558,60.40402071,138.38,138.29,29.94]
[1745248448748,4.006,138.37,138.3,7.2287]
[1745248448947,30.41367829,138.35,138.3,7.2287]
[1745248449155,7.2272,138.34,138.3,7.2287]
[1745248449452,29.94,138.34,138.26,29.94]
[1745248449756,30.41367829,138.29,138.2,2.0951]
[1745248449956,30.41367829,138.29,138.23,7.2325]
[1745248449957,60.35367829,138.29,138.23,7.2325]
[1745248450153,0.04652417,138.26,138.23,7.28377739]
[1745248450455,0.04652417,138.26,138.23,0.05127739]
[1745248450853,0.04652417,138.26,138.23,7.28367739]
[1745248451156,0.04652417,138.26,138.23,0.05127739]
[1745248451355,29.94,138.25,138.23,0.05127739]
[1745248451555,29.94,138.25,138.17,3.9656]
[1745248451953,30.41367829,138.23,138.17,33.9056]
[1745248452148,30.41367829,138.23,138.17,29.94]
[1745248452848,0.04725387,138.21,138.17,29.94]
[1745248453254,0.04725387,138.21,138.14,32.0351]
[1745248453452,30.41367829,138.2,138.14,32.0351]
[1745248453653,30.41367829,138.2,138.11,68.19591129]
[1745248453856,7.2352,138.19,138.12,64.03795564]
[1745248454055,0.05032578,138.17,138.12,64.03795564]
[1745248454257,0.05032578,138.17,138.14,7.2374]
[1745248455258,0.05032578,138.17,138.13,7.2377]
[1745248455652,0.05032578,138.17,138.14,7.237]
[1745248456557,0.05032578,138.17,138.12,29.94]
[1745248456754,0.05032578,138.17,138.13,7.2378]
[1745248457150,0.05032578,138.17,138.12,29.94]
[1745248457357,30.46400407,138.17,138.12,37.1783]
[1745248457659,37.70020407,138.17,138.12,37.1783]
[1745248457953,37.70020407,138.17,138.13,7.2376]
[1745248458459,30.46400407,138.17,138.14,7.2374]
[1745248458658,0.05032578,138.17,138.14,7.2374]
[1745248458858,0.05032578,138.17,138.12,29.94]
[1745248461359,0.05032578,138.17,138.15,7.2366]
[1745248461761,0.05032578,138.17,138.12,29.94]
[1745248462060,0.05032578,138.17,138.15,7.2366]
[1745248463064,0.05032578,138.17,138.16,7.2363]
[1745248463559,0.05032578,138.17,138.15,7.2367]
[1745248465062,30.41367829,138.27,138.15,30.41367829]
[1745248465264,30.41367829,138.24,138.14,29.94]
[1745248465865,7.2337,138.21,138.17,7.2355]
[1745248466063,0.04734705,138.2,138.18,0.0553821]
[1745248466261,60.35367829,138.19,138.09,29.94]
[1745248466462,7.2371,138.15,138.11,7.2385]
[1745248466864,7.2361,138.17,138.13,7.2376]
[1745248467061,60.35367829,138.19,138.09,29.94]
[1745248467262,0.05373061,138.15,138.09,29.94]
[1745248467965,0.05373061,138.15,138.1,7.2393]
[1745248468260,0.05373061,138.15,138.09,29.94]
[1745248469556,0.05373061,138.15,138.14,7.2374]
[1745248470265,0.05373061,138.15,138.13,37.1777]
[1745248470566,0.05373061,138.15,138.13,29.94]
[1745248470765,0.05373061,138.15,138.1,29.94]
[1745248470966,0.05373061,138.15,138.12,7.2382]
[1745248471167,0.05373061,138.15,138.1,29.94]
[1745248472063,0.05373061,138.15,138.13,7.2374]
[1745248472265,0.05373061,138.15,138.1,29.94]
[1745248472766,0.05373061,138.15,138.14,7.2374]
[1745248473568,7.235,138.19,138.16,7.2363]
[1745248473765,36.31767829,138.23,138.14,29.94]
[1745248473969,7.2332,138.22,138.19,7.2345]
[1745248474268,60.35367829,138.26,138.15,4.032]
[1745248474470,7.234,138.21,138.18,7.235]
[1745248474769,0.05051461,138.22,138.19,0.04548696]
[1745248474966,0.05051461,138.22,138.21,7.2337]
[1745248480869,0.05051461,138.22,138.19,0.04548696]
[1745248481366,7.2341,138.21,138.19,0.04548696]
[1745248481571,0.05051461,138.22,138.19,0.04548696]
[1745248481965,7.2338,138.21,138.19,0.04548696]
[1745248482171,0.05051461,138.22,138.19,0.04548696]
[1745248482476,7.28391461,138.22,138.19,0.04548696]
[1745248482774,0.05051461,138.22,138.19,0.04548696]
[1745248483172,0.05051461,138.22,138.2,7.234]
[1745248483872,0.05051461,138.22,138.19,37.21998696]
[1745248484071,0.05051461,138.22,138.19,29.98548696]
[1745248484469,0.05051461,138.22,138.2,7.234]
[1745248484972,7.28371461,138.22,138.19,37.22008696]
[1745248485473,7.2337,138.21,138.19,37.22008696]
[1745248485672,0.05051461,138.22,138.19,37.22008696]
[1745248486169,7.28391461,138.22,138.19,37.22008696]
[1745248486773,7.2342,138.2,138.19,0.04548696]
[1745248486970,30.4641929,138.22,138.19,0.04548696]
[1745248487871,7.2342,138.2,138.19,0.04548696]
[1745248488675,7.2339,138.21,138.19,0.04548696]
[1745248489972,7.2337,138.21,138.19,0.04548696]
[1745248490364,37.6976929,138.22,138.19,0.04548696]
[1745248490571,30.4641929,138.22,138.19,0.04548696]
[1745248490875,7.2342,138.2,138.19,0.04548696]
[1745248491174,30.4641929,138.22,138.19,0.04548696]
[1745248491374,7.2341,138.21,138.19,0.04548696]
[1745248492073,37.6976929,138.22,138.19,0.04548696]
[1745248492874,7.2338,138.21,138.19,0.04548696]
[1745248493578,7.2342,138.2,138.19,0.04548696]
[1745248493868,29.9,138.2,138.12,29.9]
[1745248494075,30.41367829,138.19,138.12,29.9]
[1745248494474,30.41367829,138.19,138.15,7.2367]
[1745248494871,7.2356,138.18,138.15,7.2367]
[1745248495075,0.04943243,138.18,138.12,29.9]
[1745248496476,7.2361,138.17,138.13,7.2375]
[1745248496873,7.28503243,138.18,138.14,7.237]
[1745248497071,0.04943243,138.18,138.12,29.9]
[1745248497479,0.04943243,138.18,138.14,7.2371]
[1745248497981,7.28503243,138.18,138.15,7.2369]
[1745248498281,0.04943243,138.18,138.12,29.9]
[1745248498477,0.04943243,138.18,138.17,7.2358]
[1745248499074,7.2329,138.23,138.2,7.234]
[1745248499279,7.2329,138.23,138.16,29.92]
[1745248499475,30.41367829,138.25,138.16,29.92]
[1745248499775,602.88,138.27,138.16,29.92]
[1745248500182,7.2333,138.22,138.19,7.2344]
[1745248500378,7.2333,138.22,138.2,0.04590429]
[1745248500874,7.28352341,138.23,138.2,0.04590429]
[1745248501178,0.05062341,138.23,138.2,0.04590429]
[1745248501378,7.2337,138.21,138.2,0.04590429]
[1745248501679,0.05062341,138.23,138.2,0.04590429]
[1745248501979,7.2337,138.21,138.2,0.04590429]
[1745248502679,0.05062341,138.23,138.2,0.04590429]
[1745248502980,0.05062341,138.23,138.21,29.9]
[1745248503282,0.05062341,138.23,138.22,7.2332]
[1745248503882,30.41367829,138.28,138.26,7.231]
[1745248504079,30.41367829,138.28,138.21,29.9]
[1745248504980,7.2312,138.26,138.23,7.2326]
[1745248505180,0.05030341,138.26,138.23,0.04764997]
[1745248506075,30.41367829,138.25,138.18,29.9]
[1745248506280,7.2325,138.24,138.21,7.2337]
[1745248506880,37.64537829,138.25,138.22,7.2331]
[1745248507070,30.46210141,138.25,138.22,0.05495222]
[1745248507476,37.69400141,138.25,138.22,0.05495222]
[1745248507981,37.69400141,138.25,138.22,7.28775222]
[1745248508181,0.04842312,138.25,138.22,0.05495222]
[1745248508383,0.04842312,138.25,138.22,29.95495222]
[1745248509286,0.04842312,138.25,138.24,7.2322]
[1745248510377,0.04842312,138.25,138.22,29.95495222]
[1745248510985,0.04842312,138.25,138.24,7.2322]
[1745248514290,0.04842312,138.25,138.22,29.95495222]
[1745248515088,0.04842312,138.25,138.24,7.2322]
[1745248515990,0.04842312,138.25,138.22,29.95495222]
[1745248515991,7.2287,138.31,138.28,7.2299]
[1745248516192,30.41367829,138.33,138.26,29.9]
[1745248516392,32.41337829,138.34,138.29,7.2291]
[1745248516890,32.41337829,138.34,138.29,7.2295]
[1745248517083,0.04768842,138.33,138.3,0.05423526]
[1745248517895,7.228,138.32,138.3,0.05423526]
[1745248518084,0.04768842,138.33,138.3,0.05423526]
[1745248518488,30.41367829,138.31,138.3,0.05423526]
[1745248518693,30.41367829,138.31,138.27,7.2305]
[1745248518892,30.41367829,138.31,138.26,29.9]
[1745248519796,0.05113418,138.3,138.27,0.05396653]
[1745248519990,7.2298,138.29,138.27,0.05396653]
[1745248520291,0.05113418,138.3,138.27,0.05396653]
[1745248520594,7.28063418,138.3,138.27,0.05396653]
[1745248521096,7.28063418,138.3,138.27,7.28456653]
[1745248521297,7.28063418,138.3,138.27,0.05396653]
[1745248521596,7.2297,138.29,138.27,0.05396653]
[1745248522097,7.28033418,138.3,138.27,0.05396653]
[1745248522498,0.05113418,138.3,138.27,0.05396653]
[1745248524303,0.05113418,138.3,138.29,7.2295]
[1745248524601,1.9445,138.35,138.27,0.05396653]
[1745248524796,1.9445,138.35,138.31,7.2282]
[1745248524993,30.41367829,138.34,138.29,29.86]
[1745248525194,2.0253,138.33,138.26,29.86]
[1745248525402,4.1369,138.33,138.26,29.86]
[1745248525604,7.2286,138.31,138.28,7.2298]
[1745248525901,7.2828301,138.31,138.28,7.28165521]
[1745248526097,0.0542301,138.31,138.29,7.2295]
[1745248526303,0.0542301,138.31,138.28,0.05185521]
[1745248526699,0.0542301,138.31,138.28,7.28165521]
[1745248526899,0.0542301,138.31,138.28,0.05185521]
[1745248527111,7.2295,138.29,138.28,0.05185521]
[1745248527302,30.46790839,138.31,138.28,0.05185521]
[1745248528202,0.0542301,138.31,138.28,0.05185521]
[1745248528506,0.0542301,138.31,138.29,7.2293]
[1745248529109,0.0542301,138.31,138.3,7.229]
[1745248529708,0.0542301,138.31,138.3,37.089]
[1745248529906,0.0542301,138.31,138.3,29.86]
[1745248530510,0.0542301,138.31,138.3,37.089]
[1745248533612,1.9092,138.36,138.33,7.2271]
[1745248533812,1.9092,138.36,138.3,29.86]
[1745248534115,7.2269,138.35,138.3,29.86]
[1745248534513,0.04597246,138.34,138.31,0.05396236]
[1745248534709,0.04597246,138.34,138.33,7.2272]
[1745248535806,7.2239,138.4,138.37,7.225]
[1745248536311,7.2239,138.4,138.35,29.86]
[1745248536618,19.12948272,138.39,138.35,29.86]
[1745248537011,19.18247426,138.39,138.36,0.04629906]
[1745248537717,7.2252,138.38,138.36,0.04629906]
[1745248538018,19.18247426,138.39,138.36,0.04629906]
[1745248538316,7.225,138.38,138.36,0.04629906]
[1745248539211,0.05299154,138.39,138.36,0.04629906]
[1745248539517,7.27759154,138.39,138.36,0.04629906]
[1745248539913,0.05299154,138.39,138.36,0.04629906]
[1745248540320,0.05299154,138.39,138.36,7.27189906]
[1745248540618,7.27729154,138.39,138.36,0.04629906]
[1745248541219,7.2249,138.38,138.36,0.04629906]
[1745248542119,7.2254,138.37,138.36,0.04629906]
[1745248543211,7.2251,138.38,138.36,0.04629906]
[1745248543522,0.05299154,138.39,138.36,0.04629906]
[1745248544117,0.05299154,138.39,138.36,7.27199906]
[1745248544516,0.05299154,138.39,138.36,0.04629906]
[1745248544716,7.2253,138.38,138.36,0.04629906]
[1745248545320,7.2253,138.38,138.36,7.27189906]
[1745248545622,0.05299154,138.39,138.36,0.04629906]
[1745248546121,7.27759154,138.39,138.36,0.04629906]
[1745248546322,0.05299154,138.39,138.38,7.2248]
[1745248549327,19.12948272,138.45,138.41,7.2231]
[1745248549623,6.0351,138.46,138.41,29.82]
[1745248549823,2.0581,138.46,138.43,7.2222]
[1745248550220,19.12948272,138.47,138.41,29.82]
[1745248550416,7.2211,138.46,138.44,7.2216]
[1745248550719,0.05220359,138.45,138.44,7.2216]
[1745248551920,0.05220359,138.45,138.43,7.27383108]
[1745248552112,19.18168631,138.45,138.43,0.05173108]
[1745248552617,7.2217,138.44,138.43,0.05173108]
[1745248552920,19.18168631,138.45,138.43,0.05173108]
[1745248553820,0.05220359,138.45,138.43,0.05173108]
[1745248554021,19.18168631,138.45,138.43,0.05173108]
[1745248554220,19.18168631,138.45,138.35,4.1008]
[1745248554418,19.12948272,138.4,138.36,29.8]
[1745248554619,5.9063,138.44,138.36,29.8]
[1745248554920,19.12948272,138.43,138.36,29.8]
[1745248555121,26.35178272,138.43,138.4,7.2233]
[1745248555321,0.05518322,138.41,138.4,7.2233]
[1745248558019,0.05518322,138.41,138.38,0.05450465]